Cogmind - Beta 16 @@@ ROGUE MODE // 2025.12.24 @ 23:18:43 Player: MrProgressor Result: Destroyed by G-47 Trooper with Particle Gun Performance ------------- Evolutions (0) 0 Regions Visited (2) 400 Robots Destroyed (20) 100 Value Destroyed (336) 336 Prototype IDs (0) 0 Alien Tech Used (0) 0 Bonus (0) 0 TOTAL SCORE: 836 Bonus ------- None Cogmind --------- Core Integrity 0/250 Matter 272/300 Energy 100/100 System Corruption 0% Temperature Cool (9) Movement Rolling (80) Location -10/Mines Parts ------- > --- POWER (1) -------- (None) > --- PROPULSION (2) --- Wheel > --- UTILITY (2) ------ Small Storage Unit Improved Terrain Scanner > --- WEAPON (2) ------- Light Assault Rifle Light Assault Rifle > --- INVENTORY (8) ---- Light Nuclear Core Aluminum Leg Improved Heat Sink Seismic Detector Grenade Launcher Peak State ------------ > --- POWER ------------ Ion Engine > --- PROPULSION ------- Wheel Compact Wheel > --- UTILITY ---------- Small Storage Unit Improved Terrain Scanner > --- WEAPON ----------- Medium Laser Assault Rifle > --- INVENTORY -------- Ion Engine Light Treads Wheel Compact Wheel Improved Heat Sink Seismic Detector Grenade Launcher Mining Laser [Rating: 10] Favorites ----------- Power Ion Engine Engine Ion Engine Propulsion Wheel Wheel Wheel Utility Small Storage Unit Device Improved Terrain Scanner Storage Small Storage Unit Protection Light Armor Plating Weapon Medium Laser Energy Gun Medium Laser Ballistic Gun Assault Rifle Launcher Grenade Launcher Special Weapon Mining Laser Build | -11 -10 -10 ------- Run | Yrd Mat Min Slots Evolved . | . . . Power . | . . . Propulsion . | . . . Utility . | . . . Weapon . | . . . Parts Attached 14 | 7 1 6 Power 1 | 1 . . Engine 1 | 1 . . Core . | . . . Reactor . | . . . Propulsion 4 | 2 . 2 Treads . | . . . Leg . | . . . Wheel 4 | 2 . 2 Hover . | . . . Flight . | . . . Utility 3 | 2 1 . Device 1 | 1 . . Storage 1 | 1 . . Processor . | . . . Hackware . | . . . Protection 1 | . 1 . Artifact . | . . . Weapon 6 | 2 . 4 Energy Gun 1 | 1 . . Energy Cannon . | . . . Ballistic Gun 3 | 1 . 2 Ballistic Cannon . | . . . Launcher 1 | . . 1 Special Weapon 1 | . . 1 Impact Weapon . | . . . Slashing Weapon . | . . . Piercing Weapon . | . . . Special Melee Weapon . | . . . Unidentified Prototypes . | . . . Parts Lost 8 | . . 8 Power 1 | . . 1 Propulsion 3 | . . 3 Utility 1 | . . 1 Weapon 3 | . . 3 Highest Loss Streak 4 | . . 4 To Critical Strikes . | . . . Average Backups 6 | 3 7 6 Power . | . 1 1 Propulsion 1 | 2 3 1 Utility 2 | . 2 2 Weapon 1 | . 1 1 Tool/Special . | . . . Unused Backups 8 | . 4 4 Power 2 | . 1 1 Propulsion 3 | . 2 1 Utility 2 | . . 2 Weapon 1 | . 1 . Tool/Special . | . . . Average Slot Usage (%) 97 | . 98 96 Engine 13 | . 14 13 Wheel 27 | . 28 27 Device 6 | . 11 5 Storage 14 | . 14 14 Protection 5 | . . 7 Energy Gun 8 | . 14 7 Ballistic Gun 14 | . 14 14 Launcher 4 | . . 6 Peak Build Rating 10 | 9 10 9 Average Rating 7 | 5 9 8 On Entrance 5 | . 9 8 Avg Prop Armor Cover (%) . | . . . Naked Turns . | . . . Heaviest Build 17 | 15 17 17 Greatest Support 26 | 26 26 26 Greatest Overweight (x) 1 | . . 1 Average Overweight (x) . | . . . Largest Inventory Capacity 8 | 8 8 8 Average Capacity 7 | 7 8 8 Most Carried 8 | 8 8 8 Average Carried 6 | 3 7 6 Final Capacity 8 | 8 8 8 Final Carried 8 | 8 8 5 Class Distribution -------------------- 73% | Mutant 26% | Scavenger-Mutant Dominant Class ---------------- Mutant | -10/Materials Mutant | -10/Mines Resources | -11 -10 -10 ----------- Run | Yrd Mat Min Matter Collected 471 | 287 53 131 Remotely . | . . . Salvage Created 466 | 122 100 244 Parts 34 | 7 4 23 Haulers Intercepted . | . . . Recyclers Shooed 1 | . . 1 Parts Field Recycled . | . . . Retrieved Matter . | . . . Parts Self-Destructed . | . . . Prevented . | . . . Parts Restored . | . . . Kills | -11 -10 -10 ------- Run | Yrd Mat Min Combat Hostiles Destroyed 17 | . 2 15 Guns 10 | . 1 9 Cannons 1 | . . 1 AOE 5 | . . 5 Classes Destroyed 4 | 2 1 1 Tunneler 2 | 2 . . Recycler 1 | 1 . . Swarmer 12 | . . 12 Grunt 5 | . 2 3 Best Kill Streak 6 | 2 1 6 Combat Bots Only 6 | . 1 6 Max Kills in Single Turn 3 | 1 1 3 Gunslinging . | . . . Exploded 3 | . . 3 Melee . | . . . Uniques/NPCs Destroyed . | . . . Combat | -11 -10 -10 -------- Run | Yrd Mat Min Hostile Shots Fired 107 | . 19 88 Missed 24 | . 4 20 Hits 83 | . 15 68 Projectile 83 | . 15 68 Damage Taken 895 | . 160 735 Core 254 | . 29 225 Absorbed by Shields . | . . . Core Remaining (%) 100 | 100 . . Volleys Fired 56 | 9 11 36 Largest 2 | 2 2 2 Hottest 150 | 70 70 150 Shots Fired 110 | 18 22 70 Gun 102 | 18 22 62 Cannon . | . . . Launcher 4 | . . 4 Special 4 | . . 4 Kinetic 59 | 9 11 39 Thermal 47 | 9 11 27 Explosive 4 | . . 4 Electromagnetic . | . . . Robot Hit Streak 10 | 3 10 8 Robot Miss Streak 5 | 1 2 5 Penetration Max . | . . . Secondary Targets 2 | . . 2 Max Gunslinging Chain 1 | . . 1 Shots Hit Robots 68 | 12 18 38 Core Hits 27 | 4 4 19 Critical Kills . | . . . Critical Parts Destroyed . | . . . Critical Strikes 1 | . 1 . Burn 1 | . 1 . Melee Attacks . | . . . Impact . | . . . Slashing . | . . . Piercing . | . . . Sneak Attacks . | . . . Combat Hostiles . | . . . Follow-up Attacks . | . . . Damage Inflicted 1119 | 152 231 736 Guns 789 | 152 231 406 Cannons . | . . . Explosions 282 | . . 282 Melee . | . . . Ramming . | . . . Kinetic 426 | 64 117 245 Thermal 411 | 88 114 209 Explosive 282 | . . 282 Electromagnetic . | . . . Impact . | . . . Slashing . | . . . Piercing . | . . . Highest Corruption . | . . . Average Corruption . | . . . Corruption Purged . | . . . Corruption Blocked . | . . . Overload Shots . | . . . Overflow Damage 12 | . . 12 Projectiles 8 | . . 8 Explosions 4 | . . 4 Melee . | . . . Knockbacks . | . . . Impact . | . . . Kinetic . | . . . Secondary . | . . . Self-Inflicted Damage 107 | . . 107 Shots 4 | . . 4 Rammed . | . . . Targets Rammed . | . . . Kicked . | . . . Crushed . | . . . Highest Temperature 300 | 54 96 300 Average Temperature 61 | 22 43 75 Received Heat Transfer 183 | . 69 114 Effects 1 | . . 1 Interference 1 | . . 1 Siege Activations . | . . . Martial Activations . | . . . Shielding Activations . | . . . Robots Disrupted . | . . . Combat Hostiles . | . . . Robots Corrupted . | . . . Combat Hostiles . | . . . Parts Fried . | . . . Impact Corruptions . | . . . Robots Melted 1 | . 1 . Combat Hostiles 1 | . 1 . Parts Melted 1 | . . 1 Heat Transferred 1247 | 259 407 581 Parts Sabotaged . | . . . Parts Stolen . | . . . Parts Stripped . | . . . Power Chain Reactions . | . . . Alert | -11 -10 -10 ------- Run | Yrd Mat Min Maximum Alert Level 1 | . . 1 Low Security (%) 93 | 100 100 89 Level 1 6 | . . 10 Level 2 . | . . . Level 3 . | . . . Level 4 . | . . . Level 5 . | . . . High Security . | . . . Max Security . | . . . Peak Influence 221 | 5 35 221 Initial 1 | . . 1 Average 94 | 1 16 139 Influence Increases 530 | 15 65 450 Destroy 0b10 Robot/C 340 | . 40 300 Destroy 0b10 Robot/NC 15 | 15 . . Destroy Leader 60 | . 10 50 Destroy Structure 25 | . . 25 Lose Combat Pursuer 90 | . 15 75 Influence Decreases 397 | 15 60 322 Entered New Map 4 | . . 4 Time Decay 313 | 15 60 238 Lost Part 80 | . . 80 Squads Dispatched . | . . . Investigation . | . . . Extermination . | . . . Reinforcement . | . . . Assault . | . . . Garrison . | . . . Intercept . | . . . Searches Triggered . | . . . Construction Impeded . | . . . Haulers Reinforced . | . . . Active Scanning Responses . | . . . Cargo Convoy Interrupts . | . . . Stealth | -11 -10 -10 --------- Run | Yrd Mat Min Distress Signals . | . . . Communications Jammed . | . . . Distress Signals . | . . . Times Spotted 24 | . 5 19 Peak Tracking Total 5 | . 3 5 Tactical Retreats 4 | . 1 3 Traps | -11 -10 -10 ------- Run | Yrd Mat Min Traps Triggered . | . . . Indirectly . | . . . Trap Hack Attempts . | . . . Triggered . | . . . Disarmed . | . . . Reprogrammed . | . . . Reused . | . . . Traps Extracted . | . . . Installed . | . . . Triggered . | . . . Machines | -11 -10 -10 ---------- Run | Yrd Mat Min Machines Disabled . | . . . Max in Single Turn . | . . . Machines Repaired . | . . . Machines Dismantled . | . . . Machines Sabotaged . | . . . Overloaded Fab Kills . | . . . Hacking | -11 -10 -10 --------- Run | Yrd Mat Min Machines Accessed 2 | . 2 . Terminals 2 | . 2 . Fabricators . | . . . Repair Stations . | . . . Recycling Units . | . . . Scanalyzers . | . . . Garrison Access . | . . . Total Hacks 4 | . 4 . Successful 2 | . 2 . Failed 2 | . 2 . Catastrophic . | . . . Database Lockouts . | . . . Manual 3 | . 3 . Terminals 4 | . 4 . Fabricators . | . . . Repair Stations . | . . . Recycling Units . | . . . Scanalyzers . | . . . Garrison Access . | . . . Terminal Hacks 2 | . 2 . Branch Access Points 1 | . 1 . Locate Traps 1 | . 1 . Fabricator Hacks . | . . . Repair Station Hacks . | . . . Recycling Unit Hacks . | . . . Scanalyzer . | . . . Garrison Access Hacks . | . . . Unauthorized Hacks . | . . . Terminals . | . . . Fabricators . | . . . Repair Stations . | . . . Recycling Units . | . . . Scanalyzers . | . . . Garrison Access . | . . . Data Cores Recovered . | . . . Used . | . . . Hacking Detections 1 | . 1 . Full Trace Events . | . . . Feedback Events . | . . . Feedback Blocked . | . . . Robot Schematics Acquired . | . . . Robots Built . | . . . Authchips . | . . . Time . | . . . Total Robot Build Rating . | . . . Part Schematics Acquired . | . . . Parts Built . | . . . Authchips . | . . . Time . | . . . Total Part Build Rating . | . . . Part Studies Acquired . | . . . Parts Repaired . | . . . Time . | . . . Parts Recycled . | . . . Recycled Matter . | . . . Retrieved Matter . | . . . Retrieved Components . | . . . Parts Scanalyzed . | . . . Part Schematics Acquired . | . . . Parts Damaged . | . . . Bothacking | -11 -10 -10 ------------ Run | Yrd Mat Min Used RIF Installer . | . . . Robots Hacked . | . . . Non-combat . | . . . Combat . | . . . Robot Hacks Applied . | . . . Relay Couplers Released . | . . . Fabnet Peak Effective % . | . . . Robots Rewired . | . . . Allies Hacked . | . . . Hacks Repelled . | . . . Allies | -11 -10 -10 -------- Run | Yrd Mat Min Total Allies . | . . . Largest Group . | . . . Highest-Rated Group . | . . . Highest-Rated Ally . | . . . Total Orders . | . . . Ally Attacks . | . . . Total Damage . | . . . Kills . | . . . Allies Corrupted . | . . . Allies Melted . | . . . Intel | -11 -10 -10 ------- Run | Yrd Mat Min Active Infowar (turns) 336 | 6 131 199 Terrain 336 | 6 131 199 Robot Analysis Total . | . . . Derelict Logs Recovered . | . . . Drone Launches . | . . . Drone Recoveries . | . . . Exploration | -11 -10 -10 ------------- Run | Yrd Mat Min Turns Passed 781 | 120 150 511 Spaces Moved 503 | 81 109 313 Core 6 | 6 . . Treads . | . . . Legs . | . . . Wheels 497 | 75 109 313 Hover . | . . . Flight . | . . . Fastest Speed 50 | 50 90 90 Average Speed 89 | 87 90 90 Slowest Speed 100 | 100 90 95 Overloaded Moves . | . . . Propulsion Burnouts . | . . . Robots Hopped . | . . . Potential Cave-ins . | . . . Cave-ins Triggered . | . . . Exploration Rate (%) 24 | 6 25 43 Regions Visited 2 Branch Regions 1 Pre-discovered Areas 1 | . . 1 Known Exits Taken 1 | . 1 . Unknown Exits Taken 1 | 1 . . Scrap Searched . | . . . Spaces Dug 11 | . . 11 Terrain Destroyed 47 | . . 47 Melee . | . . . Projectile 2 | . . 2 AOE 45 | . . 45 Terrain Rammed . | . . . Walls Destroyed . | . . . Machines Disabled . | . . . Actions | -11 -10 -10 --------- Run | Yrd Mat Min Total 716 | 108 140 468 Wait 124 | 4 10 110 Move 501 | 80 108 313 Hop . | . . . Pick Up 14 | 8 4 2 Fast Attach 9 | 7 1 1 Attach 5 | . . 5 Detach . | . . . Swap 2 | . 1 1 Drop 5 | . 5 . Fire 56 | 9 11 36 Melee . | . . . Ram . | . . . Kick . | . . . Crush . | . . . Escape Stasis . | . . . Rewire . | . . . Trap . | . . . Miscellaneous . | . . . Route ------- -11/Scrapyard -10/Materials (discovered 2 exits: *Min x2) -10/Mines (discovered 2 exits: [*Mat x2]) History --------- Turn | Location | Event 7 | -11/Scrapyard | Discovered new exit (range 15) 121 | -11/Scrapyard | Entered Materials 213 | -10/Materials | Identified exit to Mines 271 | -10/Materials | Entered Mines 305 | -10/Mines | Build established: Mutant 521 | -10/Mines | Core integrity fell below 50% 530 | -10/Mines | Learned location of Storage (-8) 560 | -10/Mines | Lost 4 parts (1u3w) 571 | -10/Mines | Discovered new exit (range 12) 578 | -10/Mines | Core integrity fell below 20% 715 | -10/Mines | Discovered new exit (range 15) 782 | -10/Mines | Destroyed by G-47 Trooper with Particle Gun Last Messages --------------- 00583_ The unstable cave ceiling collapses. 00583_ K-01 Serf collects debris. 00584_ Acquired 6 matter. 00586_ Acquired Aluminum Leg. 00587_ K-01 Serf collects debris. 00641_ U-05 Engineer builds a Wall. 00645_ U-05 Engineer lays Concrete. 00646_ U-05 Engineer builds a Wall. 00651_ U-05 Engineer lays Concrete. 00652_ U-05 Engineer builds a Wall. 00654_ U-05 Engineer lays Concrete. 00655_ U-05 Engineer builds a Wall. 00656_ U-05 Engineer lays Concrete. 00657_ U-05 Engineer builds a Wall. 00658_ Acquired 2 matter. 00715_ EXIT=FOUND 00768_ G-34 Mercenary destroyed. 00768_ Switching to secondary target: G-47 Trooper. 00772_ Com. Wheel destroyed. 00778_ Ion Engine destroyed. Map ----- +----------------------------------------------------+ | ????## ##??????### #???? | | ????# ## #????????### ##???? | | ????#### ## ##???????#?## ##????? | | ?#???## #?#?????#??# #?????? | | ?????# ######????## ##????? | | ????## #???## #????? | | ???#?# < ###?# ###### | | ?????## ####### ##??# | | ??????#####??#??# ##### | | ???????????????## ### ## #### | | ???????????#????#### #?## ### #?#? | | ????#????#??#??????# ##?####?# #??? | | ??????????????????## ##??#?#?# #?#? | | ???????#??????#??## ##?????# #??? | | ???????????????#?# ##????# #??? | | ??????#???#??#???# ##?### #??? | | ?????????#???????## ##?## ##?? | | ??###??##????#????## ### ##? | | #??#g ??????#??????### ## ## | | #??# ?#?????????????## ### | | ??## ?#???????????#?# ### | | ??# #??????????????# ## " | | ??# ###???????????# ### " | | ???# ###########?## ##?#### " | | ????# #??###?????## | | ?#??# [!@##### ## #######????## | | ????## g%##???# ## #???## | | ?????## =#??### ######## #???# | | ??????### #??## ####?# #???# # | | ????????# #??# ##??# #???# # | | ???????? ??# #??# #???# # | | ????????"""??## ##?# #??## # | | ?#??????"""? ?#### ### #?## # | | ?#??????"""????#?## # ### # | | ????#??? ???????# """ # | | ????????###??????## """ # | | ?????????????????# """ ### ## ## | | ???????#????##???# #?# ### ## | | ????????????????## ##?# #?? #? | | ???????????????## ###??# #?? #? | | ??????????????## ##????# #?? #? | | ???????????#### ##?????# #?? #? | | ??????????## ##??????# #?? #? | | ??????????# ##???????? #?? #? | | ??????????# < #????????? ??? ?? | | ??????????## #????????#?????? | | ???????????## ?????????????? | | ????????????# ??????#????? | | ????????????# ??????????? | | ????????????# #???????? | +----------------------------------------------------+ Best States ------------- Heat Dissipation 25 Energy Generation 10 Energy Capacity 250 Matter Stores 300 Matter Capacity 300 Sight Range 16 Terrain Scan Range 16 Terrain Scan Density 10 Armor Coverage 150 Evasion (%) 42 Item Schematics ----------------- None Robot Schematics ------------------ None Fabricated ------------ Nothing Repaired ---------- Nothing Studied --------- None Alien Tech Used ----------------- None Achievements -------------- None Challenges ------------ None Game ------ Seed MeleeExplosiveStorm Manual? 0 Play Time 00:12:23 Cumulative 249.6 hours Start 2025.12.24 @ 23:08:41 End 2025.12.24 @ 23:18:43 Sessions 1 Manual Loads 0 Difficulty Rogue Special Mode None Game No. 80 Rogue 80 Adventurer 0 Explorer 0 Win Type - Total 2 Types 2/0/0/0/0/0/0/0/0/0 Lore% 53 Gallery% 60 Achievement% 40 Wizard Run 0 Options --------- Layout 0 ASCII 0 Keyboard 0 Movement Mouse Keybinds 1 Fullscreen 2 Font 18/X11 Map View 76x50 Zoom Use 0% Tactical HUD 1 Map Filters NONE Filters NONE Steam 1 RUN: b4266c70-f3bc-401d-ac30-fa0222bf3c5d